[Event "Early-Titled-Tuesday-Blitz-April-16-2024"]
[Site "Chess.com"]
[Date "2024.04.16"]
[Round "2"]
[White "MikhailBLR"]
[Black "Rawnsdale"]
[Result "1-0"]
[WhiteElo "2327"]
[BlackElo "2516"]
[TimeControl "180+1"]
[EndTime "8:18:57 PDT"]
[Termination "MikhailBLR won by checkmate"]

1. e4 {[%clk 0:03:00.9]} 1... c6 {[%clk 0:02:59.8]} 2. d4 {[%clk 0:03:00.8]}
2... d5 {[%clk 0:03:00.2]} 3. exd5 {[%clk 0:03:01.7]} 3... cxd5 {[%clk
0:03:01.1]} 4. c4 {[%clk 0:03:02]} 4... Nf6 {[%clk 0:03:01]} 5. Nc3 {[%clk
0:03:02.6]} 5... Nc6 {[%clk 0:03:01.4]} 6. Nf3 {[%clk 0:03:00.2]} 6... Be6
{[%clk 0:03:01.3]} 7. cxd5 {[%clk 0:02:54.9]} 7... Bxd5 {[%clk 0:03:02.2]} 8.
Be2 {[%clk 0:02:53.3]} 8... e6 {[%clk 0:03:02.3]} 9. O-O {[%clk 0:02:52.1]} 9...
Be7 {[%clk 0:02:57.7]} 10. Be3 {[%clk 0:02:43.3]} 10... O-O {[%clk 0:02:57.3]}
11. h3 {[%clk 0:02:43.9]} 11... Rc8 {[%clk 0:02:56.9]} 12. Rc1 {[%clk
0:02:43.3]} 12... Qa5 {[%clk 0:02:32.3]} 13. a3 {[%clk 0:02:34.9]} 13... Rfd8
{[%clk 0:02:28.9]} 14. Qd2 {[%clk 0:02:19]} 14... Bb3 {[%clk 0:02:17.9]} 15. Nb1
{[%clk 0:02:04.3]} 15... Qc7 {[%clk 0:01:51]} 16. Ne5 {[%clk 0:01:52.8]} 16...
Qd6 {[%clk 0:01:44.6]} 17. Nxc6 {[%clk 0:01:45.4]} 17... bxc6 {[%clk 0:01:33.4]}
18. Qa5 {[%clk 0:01:34.3]} 18... Nd5 {[%clk 0:01:17.3]} 19. Nd2 {[%clk
0:01:19.4]} 19... Rb8 {[%clk 0:01:08.2]} 20. Bc4 {[%clk 0:01:00.5]} 20... Nxe3
{[%clk 0:00:50]} 21. fxe3 {[%clk 0:01:00.6]} 21... Bxc4 {[%clk 0:00:44.1]} 22.
Nxc4 {[%clk 0:01:00.1]} 22... Qg3 {[%clk 0:00:44.6]} 23. Rf3 {[%clk 0:00:58.6]}
23... Qh4 {[%clk 0:00:40.2]} 24. Ne5 {[%clk 0:00:50.4]} 24... c5 {[%clk
0:00:12.7]} 25. Nc6 {[%clk 0:00:42.3]} 25... Bf6 {[%clk 0:00:12.5]} 26. Nxd8
{[%clk 0:00:31.1]} 26... Rxd8 {[%clk 0:00:12.4]} 27. Qxc5 {[%clk 0:00:30.1]}
27... h6 {[%clk 0:00:11.3]} 28. Rcf1 {[%clk 0:00:28.9]} 28... Qe4 {[%clk
0:00:10.6]} 29. Qc7 {[%clk 0:00:27.4]} 29... Rf8 {[%clk 0:00:10.3]} 30. b4
{[%clk 0:00:25.9]} 30... a6 {[%clk 0:00:09.2]} 31. Qb6 {[%clk 0:00:25.5]} 31...
h5 {[%clk 0:00:06.6]} 32. Qxa6 {[%clk 0:00:24]} 32... e5 {[%clk 0:00:05.9]} 33.
dxe5 {[%clk 0:00:20.6]} 33... Qxe5 {[%clk 0:00:06.5]} 34. Qa5 {[%clk 0:00:20.3]}
34... Qc3 {[%clk 0:00:04.9]} 35. Qxh5 {[%clk 0:00:19.8]} 35... Qxa3 {[%clk
0:00:04.8]} 36. Qg4 {[%clk 0:00:20.1]} 36... Bc3 {[%clk 0:00:03.5]} 37. e4
{[%clk 0:00:19.2]} 37... Qxb4 {[%clk 0:00:02.8]} 38. Rg3 {[%clk 0:00:19.3]}
38... Bd4+ {[%clk 0:00:02.6]} 39. Kh1 {[%clk 0:00:19.8]} 39... Qd6 {[%clk
0:00:02.8]} 40. e5 {[%clk 0:00:20]} 40... Qxe5 {[%clk 0:00:03.2]} 41. Qg5 {[%clk
0:00:19.6]} 41... Qxg5 {[%clk 0:00:03.3]} 42. Rxg5 {[%clk 0:00:20.5]} 42... Bc3
{[%clk 0:00:03.1]} 43. Rg4 {[%clk 0:00:21.4]} 43... Re8 {[%clk 0:00:02.8]} 44.
Rf3 {[%clk 0:00:22]} 44... Be5 {[%clk 0:00:03.1]} 45. g3 {[%clk 0:00:21.8]}
45... f6 {[%clk 0:00:03.6]} 46. Kg2 {[%clk 0:00:22.1]} 46... Kf7 {[%clk
0:00:04.5]} 47. Re4 {[%clk 0:00:22.3]} 47... Re6 {[%clk 0:00:05.2]} 48. Re2
{[%clk 0:00:22.4]} 48... Ke7 {[%clk 0:00:05.6]} 49. Rd3 {[%clk 0:00:22.5]} 49...
Rc6 {[%clk 0:00:05.7]} 50. Red2 {[%clk 0:00:22.7]} 50... Ke6 {[%clk 0:00:06.1]}
51. Rd7 {[%clk 0:00:23.1]} 51... Rc3 {[%clk 0:00:05.9]} 52. Rxg7 {[%clk
0:00:22.5]} 52... Re3 {[%clk 0:00:05.6]} 53. Rg4 {[%clk 0:00:22.9]} 53... Ra3
{[%clk 0:00:05.4]} 54. h4 {[%clk 0:00:23.2]} 54... Kf5 {[%clk 0:00:05.6]} 55.
Rg8 {[%clk 0:00:23]} 55... Ke6 {[%clk 0:00:05.5]} 56. Rf2 {[%clk 0:00:23.1]}
56... Kf7 {[%clk 0:00:05.9]} 57. Rg4 {[%clk 0:00:22.3]} 57... Rb3 {[%clk
0:00:04.9]} 58. Rf3 {[%clk 0:00:22.7]} 58... Rb2+ {[%clk 0:00:04.9]} 59. Kh3
{[%clk 0:00:23.1]} 59... Ke6 {[%clk 0:00:05.3]} 60. Re4 {[%clk 0:00:23.7]} 60...
Rb1 {[%clk 0:00:05.4]} 61. Re2 {[%clk 0:00:23.7]} 61... Rh1+ {[%clk 0:00:05.5]}
62. Rh2 {[%clk 0:00:24]} 62... Rg1 {[%clk 0:00:06.2]} 63. h5 {[%clk 0:00:23.8]}
63... Kf7 {[%clk 0:00:06.6]} 64. Kg4 {[%clk 0:00:24.1]} 64... Kg7 {[%clk
0:00:06.7]} 65. h6+ {[%clk 0:00:24.5]} 65... Kh7 {[%clk 0:00:07]} 66. Rh3 {[%clk
0:00:24.3]} 66... Rc1 {[%clk 0:00:06.8]} 67. Kf5 {[%clk 0:00:24.7]} 67... Rc5
{[%clk 0:00:07.2]} 68. Ke6 {[%clk 0:00:25.1]} 68... Bb2 {[%clk 0:00:06.6]} 69.
Kf7 {[%clk 0:00:24.4]} 69... Rc7+ {[%clk 0:00:06.7]} 70. Ke6 {[%clk 0:00:24.6]}
70... Rc6+ {[%clk 0:00:07.2]} 71. Kd7 {[%clk 0:00:25]} 71... Rc5 {[%clk
0:00:07.3]} 72. Rf4 {[%clk 0:00:24.8]} 72... Rg5 {[%clk 0:00:06.9]} 73. g4
{[%clk 0:00:24.7]} 73... Be5 {[%clk 0:00:06.8]} 74. Re4 {[%clk 0:00:24.5]} 74...
Rg8 {[%clk 0:00:06.4]} 75. Ke6 {[%clk 0:00:24.9]} 75... Re8+ {[%clk 0:00:06.4]}
76. Kf5 {[%clk 0:00:25.3]} 76... Rg8 {[%clk 0:00:06.6]} 77. Rh5 {[%clk
0:00:25.1]} 77... Bc3 {[%clk 0:00:05.7]} 78. Re7+ {[%clk 0:00:25]} 78... Kh8
{[%clk 0:00:05.8]} 79. h7 {[%clk 0:00:25.5]} 79... Rf8 {[%clk 0:00:05.5]} 80.
Re6 {[%clk 0:00:24.9]} 80... Bd4 {[%clk 0:00:05.6]} 81. Re4 {[%clk 0:00:24.9]}
81... Bc3 {[%clk 0:00:05.7]} 82. Rh3 {[%clk 0:00:23.7]} 82... Bb2 {[%clk
0:00:05.9]} 83. Re2 {[%clk 0:00:23.1]} 83... Be5 {[%clk 0:00:05.6]} 84. g5
{[%clk 0:00:22.7]} 84... Ba1 {[%clk 0:00:03.8]} 85. g6 {[%clk 0:00:22.5]} 85...
Re8 {[%clk 0:00:02.3]} 86. Rxe8+ {[%clk 0:00:22.3]} 86... Kg7 {[%clk 0:00:02.9]}
87. h8=Q# {[%clk 0:00:21.7]} 1-0

[Event "Early-Titled-Tuesday-Blitz-April-16-2024"]
[Site "Chess.com"]
[Date "2024.04.16"]
[Round "2"]
[White "KVAIDAN"]
[Black "wannabe2700"]
[Result "1-0"]
[WhiteElo "2334"]
[BlackElo "2651"]
[TimeControl "180+1"]
[EndTime "8:19:06 PDT"]
[Termination "KVAIDAN won by checkmate"]

1. f4 {[%clk 0:02:53.5]} 1... d5 {[%clk 0:02:56.3]} 2. Nf3 {[%clk 0:02:53.2]}
2... Nf6 {[%clk 0:02:56.8]} 3. e3 {[%clk 0:02:53.7]} 3... g6 {[%clk 0:02:57.3]}
4. Be2 {[%clk 0:02:53.6]} 4... Bg7 {[%clk 0:02:57.7]} 5. O-O {[%clk 0:02:54.2]}
5... O-O {[%clk 0:02:58.4]} 6. d3 {[%clk 0:02:54.9]} 6... c5 {[%clk 0:02:57.9]}
7. Kh1 {[%clk 0:02:54.6]} 7... Nc6 {[%clk 0:02:58.2]} 8. a4 {[%clk 0:02:54.3]}
8... Qc7 {[%clk 0:02:57.8]} 9. Nc3 {[%clk 0:02:53.9]} 9... a6 {[%clk 0:02:57.6]}
10. e4 {[%clk 0:02:53.9]} 10... dxe4 {[%clk 0:02:56.5]} 11. dxe4 {[%clk
0:02:54.2]} 11... Rd8 {[%clk 0:02:56.7]} 12. Qe1 {[%clk 0:02:54.1]} 12... Nd4
{[%clk 0:02:57]} 13. Bd1 {[%clk 0:02:54.6]} 13... e6 {[%clk 0:02:50]} 14. Qh4
{[%clk 0:02:53.4]} 14... b6 {[%clk 0:02:44.7]} 15. f5 {[%clk 0:02:41.6]} 15...
Nxf3 {[%clk 0:01:47.2]} 16. Bxf3 {[%clk 0:02:40.9]} 16... e5 {[%clk 0:01:47.8]}
17. Bg5 {[%clk 0:02:35.8]} 17... Rd6 {[%clk 0:01:48.2]} 18. Rad1 {[%clk
0:02:23.9]} 18... Bb7 {[%clk 0:01:47.9]} 19. fxg6 {[%clk 0:02:15.1]} 19... hxg6
{[%clk 0:01:33]} 20. Rxd6 {[%clk 0:02:11.5]} 20... Qxd6 {[%clk 0:01:33.9]} 21.
Be2 {[%clk 0:02:11.8]} 21... Nh7 {[%clk 0:01:32.1]} 22. Be7 {[%clk 0:02:03.8]}
22... Qe6 {[%clk 0:01:09.6]} 23. Nd5 {[%clk 0:01:57.5]} 23... Bxd5 {[%clk
0:00:58.7]} 24. exd5 {[%clk 0:01:57.3]} 24... Qd7 {[%clk 0:00:59.3]} 25. d6
{[%clk 0:01:48.3]} 25... b5 {[%clk 0:00:57.6]} 26. Bf3 {[%clk 0:01:45.7]} 26...
Qf5 {[%clk 0:00:25]} 27. Qe1 {[%clk 0:01:41.6]} 27... Rb8 {[%clk 0:00:24.9]} 28.
Bd5 {[%clk 0:01:38.9]} 28... Qh5 {[%clk 0:00:20.7]} 29. Bxf7+ {[%clk 0:01:31.3]}
29... Kh8 {[%clk 0:00:20.7]} 30. d7 {[%clk 0:01:31.7]} 30... Bf6 {[%clk
0:00:12.8]} 31. Rxf6 {[%clk 0:01:25.7]} 31... Qg5 {[%clk 0:00:12.7]} 32. d8=Q+
{[%clk 0:01:22.8]} 32... Rxd8 {[%clk 0:00:12.5]} 33. Bxd8 {[%clk 0:01:18.8]}
33... Nxf6 {[%clk 0:00:12.4]} 34. axb5 {[%clk 0:01:15.5]} 34... axb5 {[%clk
0:00:12.4]} 35. Qf1 {[%clk 0:01:07.3]} 35... Kg7 {[%clk 0:00:11.7]} 36. Bd5
{[%clk 0:01:03.7]} 36... Qf5 {[%clk 0:00:09]} 37. Qxf5 {[%clk 0:01:01.2]} 37...
gxf5 {[%clk 0:00:09.9]} 38. Bc6 {[%clk 0:00:56.7]} 38... b4 {[%clk 0:00:08.9]}
39. Be7 {[%clk 0:00:55.5]} 39... c4 {[%clk 0:00:08.6]} 40. Bxb4 {[%clk
0:00:55.2]} 40... Ng4 {[%clk 0:00:08.1]} 41. Kg1 {[%clk 0:00:54.5]} 41... Ne3
{[%clk 0:00:08]} 42. Ba4 {[%clk 0:00:50.5]} 42... Kf6 {[%clk 0:00:07.6]} 43. Bc3
{[%clk 0:00:51]} 43... Ke6 {[%clk 0:00:07.1]} 44. h3 {[%clk 0:00:51.2]} 44... f4
{[%clk 0:00:06.1]} 45. Kf2 {[%clk 0:00:51.6]} 45... Nd5 {[%clk 0:00:05.4]} 46.
Kf3 {[%clk 0:00:49.1]} 46... Kf5 {[%clk 0:00:05.5]} 47. Bd7+ {[%clk 0:00:48.8]}
47... Kf6 {[%clk 0:00:06]} 48. Ke4 {[%clk 0:00:49]} 48... Ne3 {[%clk 0:00:02.9]}
49. Bxe5+ {[%clk 0:00:47.1]} 49... Ke7 {[%clk 0:00:03.4]} 50. Ba4 {[%clk
0:00:45.6]} 50... Nxg2 {[%clk 0:00:03.6]} 51. Bxf4 {[%clk 0:00:45.7]} 51... Kf6
{[%clk 0:00:03.4]} 52. h4 {[%clk 0:00:45.4]} 52... Nxh4 {[%clk 0:00:03.4]} 53.
Kd4 {[%clk 0:00:43]} 53... Kf5 {[%clk 0:00:03]} 54. Bc7 {[%clk 0:00:42.2]} 54...
Nf3+ {[%clk 0:00:03.3]} 55. Kxc4 {[%clk 0:00:42.5]} 55... Ke6 {[%clk 0:00:04.1]}
56. Bb6 {[%clk 0:00:41.2]} 56... Ne5+ {[%clk 0:00:04]} 57. Kb3 {[%clk
0:00:40.3]} 57... Kd5 {[%clk 0:00:04.3]} 58. Be3 {[%clk 0:00:39.9]} 58... Ng4
{[%clk 0:00:04]} 59. Bd2 {[%clk 0:00:38.9]} 59... Ne5 {[%clk 0:00:04.3]} 60. Bb5
{[%clk 0:00:36.1]} 60... Kc5 {[%clk 0:00:04.4]} 61. c4 {[%clk 0:00:34.6]} 61...
Nd3 {[%clk 0:00:02.9]} 62. Be3+ {[%clk 0:00:34.4]} 62... Kd6 {[%clk 0:00:02.1]}
63. Kc3 {[%clk 0:00:35]} 63... Ne5 {[%clk 0:00:02.3]} 64. Bf4 {[%clk 0:00:35.1]}
64... Kc5 {[%clk 0:00:02.8]} 65. Bxe5 {[%clk 0:00:34.5]} 65... Kb6 {[%clk
0:00:03.4]} 66. Kb4 {[%clk 0:00:33.1]} 66... Kb7 {[%clk 0:00:03.5]} 67. c5
{[%clk 0:00:33.7]} 67... Ka7 {[%clk 0:00:03.8]} 68. c6 {[%clk 0:00:33.2]} 68...
Kb6 {[%clk 0:00:04.3]} 69. Bd6 {[%clk 0:00:32.5]} 69... Ka7 {[%clk 0:00:04.5]}
70. Bc7 {[%clk 0:00:32.4]} 70... Ka8 {[%clk 0:00:04.6]} 71. Kc5 {[%clk
0:00:32.2]} 71... Ka7 {[%clk 0:00:05.1]} 72. Bc4 {[%clk 0:00:32.4]} 72... Ka8
{[%clk 0:00:05.8]} 73. Ba6 {[%clk 0:00:30]} 73... Ka7 {[%clk 0:00:06.7]} 74. Bc8
{[%clk 0:00:30]} 74... Ka8 {[%clk 0:00:07.6]} 75. Bb7+ {[%clk 0:00:30]} 75...
Ka7 {[%clk 0:00:08.5]} 76. Bb6+ {[%clk 0:00:28.9]} 76... Kb8 {[%clk 0:00:09.4]}
77. Ba7+ {[%clk 0:00:20.6]} 77... Kxa7 {[%clk 0:00:10.3]} 78. Kd6 {[%clk
0:00:20.8]} 78... Kb6 {[%clk 0:00:10]} 79. Kd7 {[%clk 0:00:20.8]} 79... Ka7
{[%clk 0:00:10.3]} 80. Bc8 {[%clk 0:00:19.6]} 80... Kb8 {[%clk 0:00:10.1]} 81.
Ba6 {[%clk 0:00:19.7]} 81... Ka7 {[%clk 0:00:10.4]} 82. Bd3 {[%clk 0:00:20.1]}
82... Kb6 {[%clk 0:00:10.4]} 83. c7 {[%clk 0:00:20.7]} 83... Ka5 {[%clk
0:00:09.8]} 84. c8=Q {[%clk 0:00:20]} 84... Ka4 {[%clk 0:00:10.7]} 85. Qc4+
{[%clk 0:00:19.9]} 85... Ka5 {[%clk 0:00:11.1]} 86. Qb5# {[%clk 0:00:20]} 1-0

[Event "Early-Titled-Tuesday-Blitz-April-16-2024"]
[Site "Chess.com"]
[Date "2024.04.16"]
[Round "2"]
[White "Aragon"]
[Black "ExchangeAB"]
[Result "1/2-1/2"]
[WhiteElo "2061"]
[BlackElo "2435"]
[TimeControl "180+1"]
[EndTime "8:19:34 PDT"]
[Termination "Game drawn - insufficient material"]

1. e4 {[%clk 0:03:00.9]} 1... c6 {[%clk 0:03:00.1]} 2. Nf3 {[%clk 0:02:59.8]}
2... d5 {[%clk 0:03:01]} 3. d3 {[%clk 0:03:00]} 3... dxe4 {[%clk 0:03:00.2]} 4.
dxe4 {[%clk 0:03:00.9]} 4... Qxd1+ {[%clk 0:03:00.4]} 5. Kxd1 {[%clk 0:03:01.2]}
5... Bg4 {[%clk 0:02:59.8]} 6. Bd3 {[%clk 0:03:00.5]} 6... e5 {[%clk 0:02:52.9]}
7. Ke2 {[%clk 0:03:01.4]} 7... f6 {[%clk 0:02:51.2]} 8. Nd2 {[%clk 0:03:00]}
8... Nd7 {[%clk 0:02:50.7]} 9. h3 {[%clk 0:03:00.4]} 9... Be6 {[%clk 0:02:50.5]}
10. Bc4 {[%clk 0:02:59.5]} 10... Kf7 {[%clk 0:02:47.3]} 11. a4 {[%clk
0:02:53.7]} 11... Bc5 {[%clk 0:02:46.2]} 12. Bxe6+ {[%clk 0:02:50.5]} 12... Kxe6
{[%clk 0:02:46]} 13. Nc4 {[%clk 0:02:45.6]} 13... Nh6 {[%clk 0:02:38.4]} 14. Ne1
{[%clk 0:02:43.7]} 14... Nf7 {[%clk 0:02:37.7]} 15. Nd3 {[%clk 0:02:43.3]} 15...
Be7 {[%clk 0:02:36.6]} 16. f3 {[%clk 0:02:38.8]} 16... Nb6 {[%clk 0:02:36.6]}
17. Na5 {[%clk 0:02:33.2]} 17... Rab8 {[%clk 0:02:32.9]} 18. Be3 {[%clk
0:02:31]} 18... Rhd8 {[%clk 0:02:30.7]} 19. Rhd1 {[%clk 0:02:29.2]} 19... Rd7
{[%clk 0:02:28.6]} 20. b3 {[%clk 0:02:20.1]} 20... Rbd8 {[%clk 0:02:28.2]} 21.
Bxb6 {[%clk 0:02:13.7]} 21... axb6 {[%clk 0:02:27.2]} 22. Nc4 {[%clk 0:02:14.1]}
22... Bc5 {[%clk 0:02:05.2]} 23. Nxc5+ {[%clk 0:01:55]} 23... bxc5 {[%clk
0:02:04.8]} 24. Rxd7 {[%clk 0:01:53.3]} 24... Rxd7 {[%clk 0:02:04]} 25. Ne3
{[%clk 0:01:37]} 25... g6 {[%clk 0:02:02.7]} 26. Rd1 {[%clk 0:01:35.8]} 26...
Rd4 {[%clk 0:02:02.1]} 27. c3 {[%clk 0:01:33.8]} 27... Rxd1 {[%clk 0:02:01.8]}
28. Nxd1 {[%clk 0:01:34.5]} 28... Nd6 {[%clk 0:02:02.1]} 29. Ne3 {[%clk
0:01:33.4]} 29... f5 {[%clk 0:02:00.6]} 30. Kd3 {[%clk 0:01:30.1]} 30... b5
{[%clk 0:01:55.1]} 31. a5 {[%clk 0:01:27.5]} 31... f4 {[%clk 0:01:47.1]} 32. Nc2
{[%clk 0:01:13.1]} 32... Ne8 {[%clk 0:01:46.3]} 33. c4 {[%clk 0:01:08.8]} 33...
Nc7 {[%clk 0:01:41.9]} 34. Ke2 {[%clk 0:01:04]} 34... Na6 {[%clk 0:01:35.6]} 35.
Kf2 {[%clk 0:01:00.2]} 35... Kd6 {[%clk 0:01:34.3]} 36. Ne1 {[%clk 0:00:57.9]}
36... Nb8 {[%clk 0:01:31.4]} 37. Nd3 {[%clk 0:00:55]} 37... Nd7 {[%clk
0:01:31.5]} 38. g3 {[%clk 0:00:54.3]} 38... g5 {[%clk 0:01:31.4]} 39. h4 {[%clk
0:00:52.7]} 39... h6 {[%clk 0:01:06.8]} 40. hxg5 {[%clk 0:00:52.2]} 40... hxg5
{[%clk 0:01:07.1]} 41. Kg2 {[%clk 0:00:50.2]} 41... Kc7 {[%clk 0:00:32.1]} 42.
Kh3 {[%clk 0:00:43.1]} 42... Kb7 {[%clk 0:00:32.4]} 43. Kg4 {[%clk 0:00:38.1]}
43... Ka6 {[%clk 0:00:30.8]} 44. Kxg5 {[%clk 0:00:35.4]} 44... fxg3 {[%clk
0:00:30.6]} 45. Ne1 {[%clk 0:00:34]} 45... Kxa5 {[%clk 0:00:30.1]} 46. Kg4
{[%clk 0:00:26.7]} 46... Kb4 {[%clk 0:00:30.3]} 47. Kxg3 {[%clk 0:00:26.7]}
47... Kxb3 {[%clk 0:00:30.6]} 48. f4 {[%clk 0:00:26.4]} 48... exf4+ {[%clk
0:00:29.8]} 49. Kxf4 {[%clk 0:00:27.3]} 49... bxc4 {[%clk 0:00:29.5]} 50. e5
{[%clk 0:00:27.9]} 50... Nf8 {[%clk 0:00:27.4]} 51. Kf5 {[%clk 0:00:26.9]} 51...
Kc3 {[%clk 0:00:23.4]} 52. Kf6 {[%clk 0:00:24.1]} 52... Kd2 {[%clk 0:00:21.2]}
53. Nf3+ {[%clk 0:00:22.1]} 53... Ke3 {[%clk 0:00:21.2]} 54. Ng5 {[%clk
0:00:21.6]} 54... Nd7+ {[%clk 0:00:19.2]} 55. Ke6 {[%clk 0:00:19.7]} 55... Nxe5
{[%clk 0:00:19.6]} 56. Kxe5 {[%clk 0:00:20.3]} 56... c3 {[%clk 0:00:20]} 57. Ne4
{[%clk 0:00:16.5]} 57... c2 {[%clk 0:00:19.9]} 58. Nxc5 {[%clk 0:00:16.1]} 58...
c1=Q {[%clk 0:00:19.7]} 59. Kd6 {[%clk 0:00:17]} 59... Qd1+ {[%clk 0:00:15.3]}
60. Kxc6 {[%clk 0:00:17]} 60... Qc2 {[%clk 0:00:15.3]} 61. Kd5 {[%clk
0:00:16.6]} 61... Qf5+ {[%clk 0:00:13.9]} 62. Kc4 {[%clk 0:00:15.2]} 62... Qg4+
{[%clk 0:00:13.3]} 63. Kd5 {[%clk 0:00:14.9]} 63... Kd2 {[%clk 0:00:13.3]} 64.
Ne4+ {[%clk 0:00:13.4]} 64... Ke3 {[%clk 0:00:11.6]} 65. Nc5 {[%clk 0:00:14.3]}
65... Qd4+ {[%clk 0:00:11.6]} 66. Kc6 {[%clk 0:00:13.8]} 66... Kf3 {[%clk
0:00:10.4]} 67. Kb5 {[%clk 0:00:12.5]} 67... Kg4 {[%clk 0:00:10.1]} 68. Kc6
{[%clk 0:00:12.4]} 68... Kf5 {[%clk 0:00:10.5]} 69. Kb5 {[%clk 0:00:11.3]} 69...
Kg6 {[%clk 0:00:10.9]} 70. Kc6 {[%clk 0:00:10.6]} 70... Kf7 {[%clk 0:00:11.5]}
71. Nd7 {[%clk 0:00:10]} 71... Ke6 {[%clk 0:00:10.7]} 72. Nc5+ {[%clk
0:00:09.6]} 72... Ke7 {[%clk 0:00:11.2]} 73. Nb7 {[%clk 0:00:08.9]} 73... Qd7+
{[%clk 0:00:10.4]} 74. Kb6 {[%clk 0:00:08.6]} 74... Qh3 {[%clk 0:00:11.3]} 75.
Kc6 {[%clk 0:00:08]} 75... Qc3+ {[%clk 0:00:11.4]} 76. Kb6 {[%clk 0:00:07.7]}
76... Kd7 {[%clk 0:00:10.6]} 77. Nc5+ {[%clk 0:00:07.3]} 77... Kc8 {[%clk
0:00:09.6]} 78. Kc6 {[%clk 0:00:06.1]} 78... Qc1 {[%clk 0:00:08.8]} 79. Kd5
{[%clk 0:00:05.9]} 79... Kc7 {[%clk 0:00:08.8]} 80. Ne4 {[%clk 0:00:06.3]} 80...
Qh1 {[%clk 0:00:08.2]} 81. Ke5 {[%clk 0:00:07.1]} 81... Kc6 {[%clk 0:00:08.6]}
82. Kd4 {[%clk 0:00:07.4]} 82... Qg1+ {[%clk 0:00:08.5]} 83. Ke5 {[%clk
0:00:07.1]} 83... Kd7 {[%clk 0:00:07.9]} 84. Nf6+ {[%clk 0:00:08]} 84... Ke7
{[%clk 0:00:06.3]} 85. Ne4 {[%clk 0:00:08.9]} 85... Qe1 {[%clk 0:00:06]} 86. Kd5
{[%clk 0:00:08.6]} 86... Qh1 {[%clk 0:00:05.5]} 87. Ke5 {[%clk 0:00:09.5]} 87...
Qa1+ {[%clk 0:00:05.8]} 88. Kd5 {[%clk 0:00:09.5]} 88... Kd7 {[%clk 0:00:06.7]}
89. Nc5+ {[%clk 0:00:09.3]} 89... Kc7 {[%clk 0:00:06.3]} 90. Ne4 {[%clk
0:00:10.2]} 90... Kb6 {[%clk 0:00:06.6]} 91. Nd6 {[%clk 0:00:10]} 91... Qd1+
{[%clk 0:00:05.8]} 92. Ke5 {[%clk 0:00:09.3]} 92... Kc5 {[%clk 0:00:06.2]} 93.
Ne4+ {[%clk 0:00:10.2]} 93... Kc6 {[%clk 0:00:06.5]} 94. Nf6 {[%clk 0:00:08.3]}
94... Qe1+ {[%clk 0:00:06.3]} 95. Ne4 {[%clk 0:00:09.2]} 95... Qe2 {[%clk
0:00:05.8]} 96. Kd4 {[%clk 0:00:09.3]} 96... Qd1+ {[%clk 0:00:05.4]} 97. Ke5
{[%clk 0:00:09.6]} 97... Qd5+ {[%clk 0:00:05.7]} 98. Kf4 {[%clk 0:00:10]} 98...
Kb5 {[%clk 0:00:06.3]} 99. Nc3+ {[%clk 0:00:09.7]} 99... Kc4 {[%clk 0:00:07.1]}
100. Nxd5 {[%clk 0:00:10.3]} 1/2-1/2